Cogmind - Beta 14 @@@ ROGUE MODE // 2024.08.09 @ 22:44:40 Player: Johnny5001 Result: Destroyed by S-43 Plague with Heavy Machine Gun Performance ------------- Evolutions (6) 3000 Regions Visited (16) 3200 Robots Destroyed (198) 990 Value Destroyed (8035) 8035 Prototype IDs (22) 440 Alien Tech Used (2) 400 Bonus (3971) 3971 TOTAL SCORE: 20036 Bonus ------- High Alert Combat Kills 1427 Follower Combat Kills 1204 Met Imprinter 300 Was Imprinted 300 Met Zhirov 300 Met Warlord at Base 500 MAIN.C Attacked Warlord 500 Friendly Fire -560 Cogmind --------- Core Integrity 0/1150 Matter 290/300 Energy 334/340 System Corruption 36% Temperature Warm (111) Movement Flying (20) Location -3/Proximity Caves Parts ------- > --- POWER (2) -------- Heavy Antimatter Reactor > --- PROPULSION (6) --- Cooled Nuclear Pulse Thruster Cooled Nuclear Pulse Thruster Cooled Nuclear Pulse Thruster > --- UTILITY (7) ------ Advanced Melee Analysis Suite Improved Target Analyzer Experimental Armor Integrity Analyzer Advanced System Shield Advanced System Shield > --- WEAPON (4) ------- (None) > --- INVENTORY (5) ---- Armored Medium Treads Improved Energy Mantle Transdimensional Reconstructor Disruptor Cannon Vortex Driver (30) Peak State ------------ > --- POWER ------------ Vortex Chain Reactor > --- PROPULSION ------- Improved Treads Medium Treads Spiked Medium Treads Heavy Treads Improved Linear Gravjet > --- UTILITY ---------- Medium Storage Unit Advanced Sensor Array Advanced Signal Interpreter Experimental Armor Integrity Analyzer Improved Weapon Cycler Layered Light Armor Plating Improved Energy Mantle > --- WEAPON ----------- Hypervelocity Gauss Rifle Railgun Hardcell Cannon Heavy Gauss Cannon > --- INVENTORY -------- Advanced Heat Sink Advanced Coolant Injector Hardened Medium Armor Plating Point Defense Array Vortex Cannon Vortex Driver Vortex Driver Improved Proton Missile Launcher Improved Plasma Cutter Great Maul [Rating: 122] Favorites ----------- Power F-cell Engine Engine F-cell Engine Power Core Reinforced Fission Core Reactor Vortex Chain Reactor Propulsion Medium Treads Treads Medium Treads Leg Aluminum Leg Wheel Centrium Wheel Hover Unit Improved Linear Gravjet Flight Unit Cooled Nuclear Pulse Thruster Utility Medium Storage Unit Device Advanced Heat Sink Storage Medium Storage Unit Processor Experimental Armor Integrity Analyzer Hackware Advanced System Shield Protection Hardened Medium Armor Plating Weapon Railgun Energy Gun Field Laser Energy Cannon Heavy Ion Cannon Ballistic Gun Railgun Ballistic Cannon Hardcell Cannon Launcher Improved Proton Missile Launcher Special Weapon Improved Plasma Cutter Impact Weapon Great Maul Build | -11 -10 -9 -9 -7 -6 -6 -5 -5 -5 -5 -4 -4 -4 -4 -4 -3 ------- Run | Yrd Mat Mat Min Zio Pro Fac Fac Upp Upp War Pro Fac Upp Upp Zhi Pro Slots Evolved 12 | . . 2 . . . 6 2 . . . . 2 . . . . Power 1 | . . . . . . . 1 . . . . . . . . . Propulsion 4 | . . . . . . 2 . . . . . 2 . . . . Utility 5 | . . 2 . . . 2 1 . . . . . . . . . Weapon 2 | . . . . . . 2 . . . . . . . . . . Parts Attached 299 | . 12 17 8 3 32 76 12 15 16 21 10 28 19 19 11 . Power 11 | . 1 2 . . 2 1 1 . . 1 . . 2 . 1 . Engine 7 | . 1 2 . . 2 1 1 . . . . . . . . . Core 2 | . . . . . . . . . . . . . 2 . . . Reactor 2 | . . . . . . . . . . 1 . . . . 1 . Propulsion 52 | . 4 5 . . 5 13 . . 2 5 1 6 2 4 5 . Treads 40 | . 4 5 . . 5 13 . . 2 2 1 5 . 3 . . Leg 2 | . . . . . . . . . . 2 . . . . . . Wheel 2 | . . . . . . . . . . . . . 2 . . . Hover 5 | . . . . . . . . . . 1 . 1 . 1 2 . Flight 3 | . . . . . . . . . . . . . . . 3 . Utility 133 | . 2 7 3 1 13 40 6 9 11 6 . 11 9 12 3 . Device 69 | . . 3 2 . 6 19 4 5 5 5 . 6 8 6 . . Storage 3 | . 1 . . . . . 1 . . . . . . 1 . . Processor 7 | . . 1 . . 1 1 . . . 1 . 1 . 1 1 . Hackware 2 | . . . . . . . . . . . . . . 1 1 . Protection 52 | . 1 3 1 1 6 20 1 4 6 . . 4 1 3 1 . Artifact . | . . . . . . . . . . . . . . . . . Weapon 103 | . 5 3 5 2 12 22 5 6 3 9 9 11 6 3 2 . Energy Gun 11 | . . . 1 . 2 2 . . . . . 2 3 1 . . Energy Cannon 7 | . . . . . 1 . . . . 2 . . . 2 2 . Ballistic Gun 51 | . 4 3 3 1 4 13 4 5 2 4 5 3 . . . . Ballistic Cannon 7 | . . . . . . . . . . 2 . 3 2 . . . Launcher 15 | . . . 1 . 3 4 . 1 1 . 2 3 . . . . Special Weapon 4 | . 1 . . . . . 1 . . 1 1 . . . . . Impact Weapon 8 | . . . . 1 2 3 . . . . 1 . 1 . . . Slashing Weapon . | . . . . . . . . . . . . . . . . . Piercing Weapon . | . . . . . . . . . . . . . . . . . Special Melee Weapon . | . . . . . . . . . . . . . . . . . Unidentified Prototypes 19 | . 1 . 1 . 1 3 . . . 9 . . . . 4 . Corrupted Parts 13 | . . . . . 4 3 . . 1 . 1 . . 1 3 . System Corruption 82 | . . . . . 20 18 . . 10 . 9 . . 11 14 . Parts Lost 62 | . 1 . . . 9 9 . . 9 . . 5 6 21 . 2 Power 3 | . . . . . 1 . . . . . . . . 2 . . Propulsion 21 | . 1 . . . 3 2 . . 3 . . 2 3 5 . 2 Utility 23 | . . . . . 2 5 . . 5 . . . 2 9 . . Weapon 15 | . . . . . 3 2 . . 1 . . 3 1 5 . . Highest Loss Streak 16 | . 1 . . . 9 4 . . 7 . . 2 3 16 . 2 To Critical Strikes 3 | . . . . . . . . . 1 . . . . 2 . . Average Slot Usage (%) 92 | . 94 100 99 99 96 99 99 99 90 93 91 85 83 38 44 47 Engine 7 | . 14 11 11 11 11 6 11 11 11 7 . . . . . . Reactor 1 | . . . . . . . . . . 1 5 5 4 . 3 5 Treads 20 | . 25 22 22 22 21 26 23 23 16 17 20 21 14 . 1 . Device 15 | . . 7 9 10 11 21 24 25 20 23 23 15 14 7 . . Storage 7 | . 14 11 11 11 11 6 5 5 5 5 5 5 5 4 1 . Processor 5 | . . 11 11 11 9 . . . . 1 5 8 10 8 10 15 Protection 8 | . 9 14 11 11 9 10 8 8 11 9 5 5 5 3 . . Energy Gun 1 | . 5 . . . . 1 1 . . . . . 7 2 . . Ballistic Gun 15 | . 20 22 21 15 16 22 20 22 22 14 7 8 . . . . Ballistic Cannon 2 | . . . . . . . . . . 5 11 9 6 1 . . Impact Weapon 1 | . . . . 6 3 . . . . . 1 . 4 1 . . Peak Build Rating 122 | 6 12 14 20 21 37 65 79 84 82 114 111 122 111 89 77 77 Average Rating 60 | 6 10 12 17 20 30 54 75 80 77 92 108 116 104 43 59 65 On Entrance 54 | 6 6 12 12 20 21 33 65 78 82 82 109 111 95 85 31 77 Naked Turns . | . . . . . . . . . . . . . . . . . Heaviest Build 110 | 13 25 28 25 41 53 92 89 95 94 105 107 110 98 105 18 18 Greatest Support 172 | 20 40 40 40 40 51 91 88 88 88 112 126 172 121 16 18 27 Greatest Overweight (x) 6 | . . . . 1 1 1 1 1 1 1 . . 6 6 . . Average Overweight (x) . | . . . . . . . . . . . . . . . . . Largest Inventory Capacity 10 | 8 10 10 10 10 10 10 10 10 10 10 10 10 10 10 5 5 Average Capacity 9 | 8 9 10 10 10 10 10 10 10 10 10 10 10 10 6 5 5 Most Carried 10 | 7 10 10 10 10 10 10 10 10 10 10 10 10 10 10 5 5 Average Carried 9 | 6 8 9 10 9 9 9 9 9 9 9 9 9 9 5 4 5 Final Capacity 10 | 8 10 10 10 10 10 10 10 10 10 10 10 10 10 5 5 5 Final Carried 10 | 7 10 10 10 10 10 10 10 10 10 10 10 9 10 5 5 5 Class Distribution -------------------- 46% | Scavenger-Tank 22% | Mutant 17% | Scavenger-Mutant 3% | Derelict-Tank 3% | Scavenger-Gunner Dominant Class ---------------- Mutant | -10/Materials Scavenger-Mutant | -9/Materials Scavenger-Mutant | -9/Mines Scavenger-Mutant | -7/Zion Mutant | -6/Proximity Caves Scavenger-Tank | -6/Factory Scavenger-Tank | -5/Factory Scavenger-Tank | -5/Upper Caves Scavenger-Tank | -5/Upper Caves Scavenger-Tank | -5/Warlord Scavenger-Tank | -4/Proximity Caves Scavenger-Tank | -4/Factory Scavenger-Tank | -4/Upper Caves Mutant | -4/Upper Caves Hacker-Mutant | -4/Zhirov Hacker-Sprinter | -3/Proximity Caves Resources | -11 -10 -9 -9 -7 -6 -6 -5 -5 -5 -5 -4 -4 -4 -4 -4 -3 ----------- Run | Yrd Mat Mat Min Zio Pro Fac Fac Upp Upp War Pro Fac Upp Upp Zhi Pro Matter Collected 8155 | 200 511 448 30 86 471 2062 523 230 840 123 440 1332 511 202 146 . Remotely . | . . . . . . . . . . . . . . . . . Salvage Created 10220 | 116 447 546 11 . 450 3170 640 216 1138 . 1014 1607 471 204 190 . Parts 462 | 7 36 33 4 . 10 144 24 10 38 . 37 77 22 6 14 . Haulers Intercepted 4 | . 1 1 . . . 2 . . . . . . . . . . Recyclers Shooed 7 | . 1 . . . . 2 3 . . . . 1 . . . . Parts Field Recycled . | . . . . . . . . . . . . . . . . . Retrieved Matter . | . . . . . . . . . . . . . . . . . Parts Self-Destructed 88 | . . . . . 16 . . 6 32 . 13 . 13 7 1 . Prevented 50 | . . . . . 6 . . 4 8 . 22 . . . 10 . Kills | -11 -10 -9 -9 -7 -6 -6 -5 -5 -5 -5 -4 -4 -4 -4 -4 -3 ------- Run | Yrd Mat Mat Min Zio Pro Fac Fac Upp Upp War Pro Fac Upp Upp Zhi Pro Combat Hostiles Destroyed 154 | . 15 9 4 . 9 42 4 6 19 . 13 19 8 6 . . Melee 5 | . . . . . 1 2 . . 2 . . . . . . . Guns 84 | . 12 9 . . 4 31 4 1 13 . . 5 1 4 . . Cannons 25 | . 2 . . . . . . . . . 3 12 7 1 . . AOE 29 | . . . 4 . 3 6 . 5 3 . 7 1 . . . . Classes Destroyed 19 | 1 4 3 . . 1 7 . 2 . . . 1 . . . . Worker 12 | . . 1 . . . 1 1 . . . . 9 . . . . Builder 7 | . . . . . . 3 . . . . . 4 . . . . Tunneler 6 | 5 . . . . . 1 . . . . . . . . . . Hauler 4 | . 1 1 . . . 2 . . . . . . . . . . Recycler 8 | . . 1 . . . 2 3 . . . . 2 . . . . Minesweeper 1 | . . . . . . . . 1 . . . . . . . . Watcher 4 | . 3 . . . . 1 . . . . . . . . . . Swarmer 37 | . 9 3 4 . . 5 . 5 1 . 5 . 2 3 . . Saboteur 2 | . . . . . . 1 . . 1 . . . . . . . Grunt 59 | . 6 . . . 6 20 1 1 11 . 5 4 3 2 . . Brawler 8 | . . . . . 2 2 . . 1 . . 1 1 1 . . Duelist 5 | . . . . . . 2 . . 2 . . 1 . . . . Sentry 18 | . . 6 . . 1 6 1 . 1 . . 1 2 . . . Hunter 8 | . . . . . . 1 . . 1 . 2 4 . . . . Programmer 16 | . . . . . . 4 2 . 1 . 1 8 . . . . Heavy 1 | . . . . . . 1 . . . . . . . . . . Z-Light 1 | . . . . . . 1 . . . . . . . . . . Z-Heavy 1 | . . . . . . . . . . . . 1 . . . . Decomposer 3 | . . . . . . . . . . . . . 3 . . . Packrat 1 | . . . . . 1 . . . . . . . . . . . Samaritan 2 | . . . . . . . . 1 . . . . 1 . . . Best Kill Streak 17 | 3 4 6 4 . 4 6 3 5 11 . 5 17 3 3 . . Combat Bots Only 11 | . 3 5 4 . 4 6 1 5 11 . 5 4 3 3 . . Max Kills in Single Turn 3 | 1 1 2 2 . 1 2 1 3 2 . 2 2 2 1 . . Gunslinging 1 | . . . . . . . . . 1 . . . . . . . Exploded 3 | . . . 2 . 1 2 . 3 2 . 2 1 . . . . Melee 1 | . . . . . 1 1 . . 1 . . . . . . . Uniques/NPCs Destroyed . | . . . . . . . . . . . . . . . . . Combat | -11 -10 -9 -9 -7 -6 -6 -5 -5 -5 -5 -4 -4 -4 -4 -4 -3 -------- Run | Yrd Mat Mat Min Zio Pro Fac Fac Upp Upp War Pro Fac Upp Upp Zhi Pro Hostile Shots Fired 1470 | . 123 41 3 . 103 341 21 11 142 . 66 206 74 300 . 39 Missed 437 | . 26 10 . . 25 117 5 6 29 . 16 75 23 84 . 21 Damage Taken 14069 | . 872 419 24 . 1520 2547 158 38 2247 . 479 1570 758 3071 . 366 Core 1972 | . 131 31 9 . 171 159 26 6 243 . 32 88 39 915 . 122 Absorbed by Shields 4064 | . . . . . . 660 142 39 148 . 459 1379 354 883 . . Redirected to Shielding 116 | . 7 29 . . . 80 . . . . . . . . . . Ignored by Resistances 84 | . . . . . . 72 12 . . . . . . . . . Regen/Repaired (Parts) 609 | . . 99 . . . 68 . . . 211 . 231 . . . . Core Remaining (%) 68 | 100 47 . . . 47 81 . . . . 69 . . . . . Volleys Fired 476 | 8 59 27 3 . 24 125 18 8 36 . 20 59 35 20 34 . Largest 4 | 2 2 2 2 . 2 4 4 4 4 . 4 4 3 3 1 . Hottest 232 | 90 140 46 46 . 108 159 164 138 138 . 207 232 221 221 81 . Shots Fired 1191 | 16 114 54 4 . 38 372 71 21 129 . 38 176 88 38 32 . Gun 923 | 16 104 54 2 . 25 347 71 17 125 . 11 75 55 21 . . Cannon 190 | . . . . . 2 . . . . . 13 93 33 17 32 . Launcher 67 | . . . 2 . 11 25 . 4 4 . 13 8 . . . . Special 11 | . 10 . . . . . . . . . 1 . . . . . Kinetic 925 | . 81 54 2 . 15 330 68 17 125 . 24 161 33 15 . . Thermal 164 | 16 33 . . . 12 17 3 . . . . 7 55 21 . . Explosive 13 | . . . 2 . 11 . . . . . . . . . . . Electromagnetic 86 | . . . . . . 25 . 4 4 . 13 8 . . 32 . Entropic 2 | . . . . . . . . . . . . . . 2 . . Robot Hit Streak 29 | 4 11 29 11 . 22 16 10 6 10 . 13 8 7 6 11 . Robot Miss Streak 7 | 1 4 2 . . 3 4 5 3 4 . 3 7 5 5 1 . Penetration Max 1 | . . . . . . 1 1 . 1 . . 1 . . . . Secondary Targets 9 | . 2 . . . . 4 . . 3 . . . . . . . Max Gunslinging Chain 1 | . 1 . . . . 1 . . 1 . . . . . . . Shots Hit Robots 723 | 10 68 44 2 . 31 210 48 8 76 . 28 94 55 21 28 . Core Hits 416 | 5 24 18 3 . 36 126 17 7 39 . 22 80 23 8 8 . Critical Kills 8 | . 1 1 . . . 1 . . 1 . 2 2 . . . . Critical Parts Destroyed 22 | . 1 . . . 3 4 1 . 2 . 4 5 . 2 . . Critical Strikes 54 | 2 3 1 . . 4 8 1 . 3 . 7 17 2 4 2 . Burn 8 | 2 1 . . . 1 3 . . . . . . 1 . . . Destroy 26 | . 2 1 . . . 5 1 . 3 . 6 8 . . . . Blast 10 | . . . . . . . . . . . . 9 1 . . . Corrupt 2 | . . . . . . . . . . . . . . . 2 . Smash 7 | . . . . . 3 . . . . . 1 . . 3 . . Sunder 1 | . . . . . . . . . . . . . . 1 . . Melee Attacks 35 | . . . . 1 13 5 . . . . 7 . . 9 . . Impact 35 | . . . . 1 13 5 . . . . 7 . . 9 . . Slashing . | . . . . . . . . . . . . . . . . . Piercing . | . . . . . . . . . . . . . . . . . Sneak Attacks . | . . . . . . . . . . . . . . . . . Combat Hostiles . | . . . . . . . . . . . . . . . . . Follow-up Attacks . | . . . . . . . . . . . . . . . . . Damage Inflicted 22903 | 132 1035 662 274 . 1810 5810 1139 444 2670 . 1745 4718 1567 738 159 . Guns 11360 | 132 978 662 28 . 397 3955 1130 185 1899 . 139 852 753 250 . . Cannons 3397 | . . . . . . . . . . . 119 1917 814 388 159 . Explosions 6858 | . . . 246 . 1068 1847 . 216 711 . 892 1878 . . . . Melee 1023 | . . . . . 328 . . . . . 595 . . 100 . . Ramming 217 | . 9 . . . 17 8 9 43 60 . . 71 . . . . Kinetic 12695 | . 832 662 28 . 251 3770 1063 185 1899 . 258 2712 814 221 . . Thermal 2872 | 132 194 . 56 . 146 369 67 . . . 158 747 753 250 . . Explosive 1361 | . . . 190 . 1068 103 . . . . . . . . . . Electromagnetic 4568 | . . . . . . 1560 . 216 711 . 734 1188 . . 159 . Impact 1023 | . . . . . 328 . . . . . 595 . . 100 . . Slashing . | . . . . . . . . . . . . . . . . . Piercing . | . . . . . . . . . . . . . . . . . Entropic 167 | . . . . . . . . . . . . . . 167 . . Highest Corruption 36 | . . . . . 26 25 2 2 21 21 10 10 10 22 36 36 Average Corruption 9 | . . . . . 19 7 1 2 13 21 9 7 10 18 23 36 Corruption Purged . | . . . . . . . . . . . . . . . . . Corruption Blocked . | . . . . . . . . . . . . . . . . . Effects 257 | . . . . . 15 48 7 16 45 4 17 8 58 22 10 7 Message Errors 68 | . . . . . 5 11 3 5 15 1 2 2 18 4 . 2 Matter Fused 46 | . . . . . 2 11 1 2 5 1 4 3 9 4 3 1 Heat Flow Errors 25 | . . . . . 2 3 . 1 3 1 4 . 4 5 1 1 Energy Discharges 43 | . . . . . 3 8 . 4 8 . 3 . 13 2 2 . Parts Rejected 2 | . . . . . . . . . . . 1 1 . . . . Parts Fused 1 | . . . . . . . . . . . . . . 1 . . Data Loss (minor) 30 | . . . . . 1 7 2 3 5 1 1 . 6 2 2 . Data Loss (major) 7 | . . . . . . 1 . . 2 . . . 1 2 . 1 Misfires 13 | . . . . . 2 1 . 1 4 . 1 . 4 . . . Alerts 5 | . . . . . . 1 . . 2 . . . 2 . . . Misdirections 4 | . . . . . . . . . . . 1 . . 1 . 2 Weapon Failures 13 | . . . . . . 5 1 . 1 . . 2 1 1 2 . Overload Shots . | . . . . . . . . . . . . . . . . . Overflow Damage 684 | . . . 62 . 95 61 . 11 10 . 310 49 . 86 . . Projectiles 59 | . . . . . . . . . . . . 40 . 19 . . Explosions 152 | . . . 62 . 10 61 . 9 10 . . . . . . . Melee 473 | . . . . . 85 . . 2 . . 310 9 . 67 . . Knockbacks 30 | . . . . . 3 . . . . . 3 18 3 3 . . Impact 6 | . . . . . 3 . . . . . 2 1 . . . . Kinetic 21 | . . . . . . . . . . . 1 15 2 3 . . Secondary 3 | . . . . . . . . . . . . 2 1 . . . Self-Inflicted Damage 244 | . . . . . 58 12 . . . . . 174 . . . . Shots 9 | . . . . . 2 2 . . . . . 5 . . . . Rammed 34 | . . . . . 6 1 . 10 10 . . 7 . . . . Targets Rammed 44 | . 5 . . . 7 2 1 11 11 . . 7 . . . . Kicked 5 | . 5 . . . . . . . . . . . . . . . Crushed 5 | . . . . . 1 1 1 1 1 . . . . . . . Highest Temperature 474 | 90 262 21 . . 361 269 244 200 390 110 258 474 368 383 150 147 Average Temperature 111 | 39 56 6 . . 149 92 69 65 164 62 84 129 124 142 96 107 Received Heat Transfer 2740 | . 141 126 . . 447 558 29 . 653 . 38 156 150 370 . 72 Effects 4 | . . . . . 1 . . . 3 . . . . . . . Shutdowns 1 | . . . . . 1 . . . . . . . . . . . Energy Bleed 1 | . . . . . . . . . 1 . . . . . . . Matter Decay 1 | . . . . . . . . . 1 . . . . . . . Damage (minor) 1 | . . . . . . . . . 1 . . . . . . . Siege Activations . | . . . . . . . . . . . . . . . . . Robots Corrupted 14 | . . . . . 1 2 . 1 1 . 4 3 . 1 1 . Combat Hostiles 11 | . . . . . 1 2 . . 1 . 4 1 . 1 1 . Parts Fried 23 | . . . . . . 7 . . 3 . 6 5 . . 2 . Impact Corruptions 21 | . . . . . 3 . . 2 . . 13 1 . 2 . . Robots Melted 3 | . 1 . . . . 1 . . . . . . 1 . . . Combat Hostiles 2 | . 1 . . . . 1 . . . . . . . . . . Parts Melted 14 | 4 1 . . . . 7 . . . . . . . 2 . . Heat Transferred 5504 | 519 559 . 50 . 369 850 150 . . . 150 864 1534 459 . . Parts Sabotaged 4 | . . . . . . 2 . . 2 . . . . . . . Parts Stolen . | . . . . . . . . . . . . . . . . . Parts Stripped . | . . . . . . . . . . . . . . . . . Power Chain Reactions 12 | . . . . . . 1 . . . . 3 8 . . . . Alert | -11 -10 -9 -9 -7 -6 -6 -5 -5 -5 -5 -4 -4 -4 -4 -4 -3 ------- Run | Yrd Mat Mat Min Zio Pro Fac Fac Upp Upp War Pro Fac Upp Upp Zhi Pro Peak Influence 1457 | 25 190 400 139 . . 1349 719 . . . . 1457 . . . . Initial 641 | . 16 46 112 . . 58 641 . . . . 170 . . . . Average 374 | 13 75 206 87 . . 540 630 . . . . 605 . . . . Maximum Alert Level 4 | . . 2 . . . 4 3 . . . . 4 . . . . Low Security (%) 50 | 100 100 31 100 . . 39 . . . . . 14 . . . . Level 1 12 | . . 67 . . . 16 . . . . . 2 . . . . Level 2 19 | . . 1 . . . 4 94 . . . . 53 . . . . Level 3 8 | . . . . . . 15 5 . . . . 16 . . . . Level 4 9 | . . . . . . 24 . . . . . 13 . . . . Level 5 . | . . . . . . . . . . . . . . . . . High Security . | . . . . . . . . . . . . . . . . . Max Security . | . . . . . . . . . . . . . . . . . Squads Dispatched 23 | . 1 . . . 1 12 1 . 1 . . 7 . . . . Investigation . | . . . . . . . . . . . . . . . . . Extermination 8 | . . . . . . 4 1 . . . . 3 . . . . Reinforcement 10 | . 1 . . . . 7 . . . . . 2 . . . . Assault 5 | . . . . . 1 1 . . 1 . . 2 . . . . Garrison . | . . . . . . . . . . . . . . . . . Intercept . | . . . . . . . . . . . . . . . . . Searches Triggered . | . . . . . . . . . . . . . . . . . Construction Impeded 5 | . . . . . . 4 . . . . . 1 . . . . Haulers Reinforced 2 | . . . . . . 1 . . . . . 1 . . . . Active Scanning Responses . | . . . . . . . . . . . . . . . . . Cargo Convoy Interrupts . | . . . . . . . . . . . . . . . . . Stealth | -11 -10 -9 -9 -7 -6 -6 -5 -5 -5 -5 -4 -4 -4 -4 -4 -3 --------- Run | Yrd Mat Mat Min Zio Pro Fac Fac Upp Upp War Pro Fac Upp Upp Zhi Pro Distress Signals 5 | . 2 1 . . . 1 . . . . . 1 . . . . Communications Jammed . | . . . . . . . . . . . . . . . . . Distress Signals . | . . . . . . . . . . . . . . . . . Times Spotted 298 | . 29 11 4 . 26 67 6 6 23 . 21 59 8 14 . 24 Peak Tracking Total 21 | . 5 6 4 . 7 6 2 5 9 . 5 9 3 5 . 21 Tactical Retreats 36 | . 5 3 . . 2 11 1 . 1 . 3 5 . 3 . 2 Traps | -11 -10 -9 -9 -7 -6 -6 -5 -5 -5 -5 -4 -4 -4 -4 -4 -3 ------- Run | Yrd Mat Mat Min Zio Pro Fac Fac Upp Upp War Pro Fac Upp Upp Zhi Pro Traps Triggered 9 | . 1 . . . . 4 . . . . . 4 . . . . Indirectly 1 | . . . . . . . . . . . . 1 . . . . Trap Hack Attempts . | . . . . . . . . . . . . . . . . . Triggered . | . . . . . . . . . . . . . . . . . Disarmed . | . . . . . . . . . . . . . . . . . Reprogrammed . | . . . . . . . . . . . . . . . . . Reused . | . . . . . . . . . . . . . . . . . Traps Extracted . | . . . . . . . . . . . . . . . . . Installed . | . . . . . . . . . . . . . . . . . Triggered 12 | . . . . . . . . . . 12 . . . . . . Machines | -11 -10 -9 -9 -7 -6 -6 -5 -5 -5 -5 -4 -4 -4 -4 -4 -3 ---------- Run | Yrd Mat Mat Min Zio Pro Fac Fac Upp Upp War Pro Fac Upp Upp Zhi Pro Machines Disabled 36 | . . . 1 . 1 13 1 . 2 1 . 17 . . . . Max in Single Turn 5 | . . . 1 . 1 3 1 . 2 1 . 5 . . . . Machines Repaired . | . . . . . . . . . . . . . . . . . Machines Dismantled 1 | . . . . . . . . . . 1 . . . . . . Machines Sabotaged . | . . . . . . . . . . . . . . . . . Overloaded Fab Kills . | . . . . . . . . . . . . . . . . . Hacking | -11 -10 -9 -9 -7 -6 -6 -5 -5 -5 -5 -4 -4 -4 -4 -4 -3 --------- Run | Yrd Mat Mat Min Zio Pro Fac Fac Upp Upp War Pro Fac Upp Upp Zhi Pro Machines Accessed 32 | . 4 5 . . 1 7 2 1 . 4 1 3 . 1 3 . Terminals 9 | . 3 4 . . . . . . . . 1 . . 1 . . Fabricators 1 | . . . . . . . . . . . . 1 . . . . Repair Stations 8 | . 1 1 . . . 3 2 . . . . 1 . . . . Recycling Units 2 | . . . . . . 2 . . . . . . . . . . Scanalyzers 2 | . . . . . . 2 . . . . . . . . . . Garrison Access 1 | . . . . . . . . . . . . 1 . . . . Total Hacks 76 | . 12 19 . . 1 11 3 1 . 8 1 6 . 1 13 . Successful 51 | . 7 10 . . 1 4 2 1 . 8 1 3 . 1 13 . Failed 24 | . 4 9 . . . 7 1 . . . . 3 . . . . Catastrophic 4 | . . . . . . 2 1 . . . . 1 . . . . Database Lockouts 1 | . 1 . . . . . . . . . . . . . . . Manual 23 | . 8 7 . 1 . 3 . . . . . 4 . . . . Terminals 27 | . 10 15 . . . . . . . . 1 . . 1 . . Fabricators 1 | . . . . . . . . . . . . 1 . . . . Repair Stations 16 | . 2 4 . . . 4 3 . . . . 3 . . . . Recycling Units 2 | . . . . . . 2 . . . . . . . . . . Scanalyzers 5 | . . . . . . 5 . . . . . . . . . . Garrison Access 2 | . . . . . . . . . . . . 2 . . . . Terminal Hacks 32 | . 3 4 . . 1 . . 1 . 8 1 . . 1 13 . Record 15 | . . . . . 1 . . . . 7 1 . . 1 5 . Part Schematic 4 | . . . . . . . . . . . . . . . 4 . Robot Analysis 5 | . 1 . . . . . . . . . . . . . 4 . Prototype ID Bank 2 | . . 2 . . . . . . . . . . . . . . Open Door 2 | . . . . . . . . 1 . 1 . . . . . . Terminal Index 1 | . . 1 . . . . . . . . . . . . . . Scanalyzer Index 1 | . 1 . . . . . . . . . . . . . . . Locate Traps 1 | . 1 . . . . . . . . . . . . . . . Hauler Manifests 1 | . . 1 . . . . . . . . . . . . . . Fabricator Hacks . | . . . . . . . . . . . . . . . . . Repair Station Hacks 12 | . 1 4 . . . 2 2 . . . . 3 . . . . Scan Component 6 | . . 2 . . . 1 1 . . . . 2 . . . . Repair 5 | . . 2 . . . 1 1 . . . . 1 . . . . Refit 1 | . 1 . . . . . . . . . . . . . . . Recycling Unit Hacks 2 | . . . . . . 2 . . . . . . . . . . Retrieve Components 2 | . . . . . . 2 . . . . . . . . . . Scanalyzer . | . . . . . . . . . . . . . . . . . Garrison Access Hacks . | . . . . . . . . . . . . . . . . . Unauthorized Hacks 5 | . 3 2 . . . . . . . . . . . . . . Terminals 5 | . 3 2 . . . . . . . . . . . . . . Track 1 | . 1 . . . . . . . . . . . . . . . Botnet 3 | . 1 2 . . . . . . . . . . . . . . Operators 1 | . 1 . . . . . . . . . . . . . . . Fabricators . | . . . . . . . . . . . . . . . . . Repair Stations . | . . . . . . . . . . . . . . . . . Recycling Units . | . . . . . . . . . . . . . . . . . Scanalyzers . | . . . . . . . . . . . . . . . . . Garrison Access . | . . . . . . . . . . . . . . . . . Data Cores Recovered . | . . . . . . . . . . . . . . . . . Used . | . . . . . . . . . . . . . . . . . Hacking Detections 19 | . 4 4 . . . 6 2 . . . . 3 . . . . Full Trace Events . | . . . . . . . . . . . . . . . . . Feedback Events . | . . . . . . . . . . . . . . . . . Feedback Blocked . | . . . . . . . . . . . . . . . . . Robot Schematics Acquired 4 | . . . . 4 . . . . . . . . . . . . Robots Built . | . . . . . . . . . . . . . . . . . Authchips . | . . . . . . . . . . . . . . . . . Time . | . . . . . . . . . . . . . . . . . Total Robot Build Rating . | . . . . . . . . . . . . . . . . . Part Schematics Acquired 18 | . . . . 14 . . . . . . . . . . 4 . Parts Built . | . . . . . . . . . . . . . . . . . Authchips . | . . . . . . . . . . . . . . . . . Time . | . . . . . . . . . . . . . . . . . Total Part Build Rating . | . . . . . . . . . . . . . . . . . Parts Repaired 4 | . . 2 . . . 1 . . . . . 1 . . . . Time 156 | . . 52 . . . 22 44 . . . . 38 . . . . Parts Recycled . | . . . . . . . . . . . . . . . . . Recycled Matter . | . . . . . . . . . . . . . . . . . Retrieved Matter . | . . . . . . . . . . . . . . . . . Retrieved Components 13 | . . . . . . 13 . . . . . . . . . . Parts Scanalyzed . | . . . . . . . . . . . . . . . . . Part Schematics Acquired . | . . . . . . . . . . . . . . . . . Parts Damaged . | . . . . . . . . . . . . . . . . . Bothacking | -11 -10 -9 -9 -7 -6 -6 -5 -5 -5 -5 -4 -4 -4 -4 -4 -3 ------------ Run | Yrd Mat Mat Min Zio Pro Fac Fac Upp Upp War Pro Fac Upp Upp Zhi Pro Used RIF Installer . | . . . . . . . . . . . . . . . . . Robots Hacked 1 | . . . . . . . . . . . 1 . . . . . Non-combat . | . . . . . . . . . . . . . . . . . Combat . | . . . . . . . . . . . . . . . . . Robot Hacks Applied . | . . . . . . . . . . . . . . . . . Manual 1 | . . . . . . . . . . . 1 . . . . . Relay Couplers Released . | . . . . . . . . . . . . . . . . . Fabnet Peak Effective % . | . . . . . . . . . . . . . . . . . Robots Rewired 4 | . . . . . 2 . . . 2 . . . . . . . Allies Hacked . | . . . . . . . . . . . . . . . . . Hacks Repelled . | . . . . . . . . . . . . . . . . . Allies | -11 -10 -9 -9 -7 -6 -6 -5 -5 -5 -5 -4 -4 -4 -4 -4 -3 -------- Run | Yrd Mat Mat Min Zio Pro Fac Fac Upp Upp War Pro Fac Upp Upp Zhi Pro Total Allies 21 | . . . 3 8 2 3 . . 2 . 1 2 . . . . Largest Group 11 | . . . 3 11 11 3 . . 2 2 2 2 . . . . Highest-Rated Group 285 | . . . 40 285 285 210 . . 78 77 116 206 . . . . Highest-Rated Ally 116 | . . . 16 40 40 70 . . 49 49 116 116 . . . . Zionite Dispatches 2 | . . . . . . 1 . . . . . 1 . . . . Heavy 1 | . . . . . . . . . . . . 1 . . . . Light 1 | . . . . . . 1 . . . . . . . . . . Total Orders 4 | . . . 2 . . . . . 2 . . . . . . . STAY 2 | . . . 1 . . . . . 1 . . . . . . . FOLLOW 2 | . . . 1 . . . . . 1 . . . . . . . Ally Attacks 188 | . . . . . 55 81 . . 2 . 13 37 . . . . Total Damage 6254 | . . . . . 1422 1522 . . 43 . 541 2726 . . . . Kills 42 | . . . . . 12 7 . . 1 . 4 18 . . . . Allies Corrupted 1 | . . . . . . . . . . . . 1 . . . . Allies Melted . | . . . . . . . . . . . . . . . . . Intel | -11 -10 -9 -9 -7 -6 -6 -5 -5 -5 -5 -4 -4 -4 -4 -4 -3 ------- Run | Yrd Mat Mat Min Zio Pro Fac Fac Upp Upp War Pro Fac Upp Upp Zhi Pro Robot Analysis Total 5 | . 1 . . . . . . . . . . . . . 4 . Derelict Logs Recovered 11 | . . . 2 1 2 . . 1 1 . 2 . 1 1 . . Drone Launches . | . . . . . . . . . . . . . . . . . Drone Recoveries . | . . . . . . . . . . . . . . . . . Exploration | -11 -10 -9 -9 -7 -6 -6 -5 -5 -5 -5 -4 -4 -4 -4 -4 -3 ------------- Run | Yrd Mat Mat Min Zio Pro Fac Fac Upp Upp War Pro Fac Upp Upp Zhi Pro Turns Passed 19308 | 129 1351 686 902 1638 2653 2309 657 1289 1310 1680 1132 1196 1687 434 180 75 Spaces Moved 10160 | 51 622 298 546 994 1298 988 291 727 623 744 648 544 952 408 156 270 Core 328 | . . . . . . . . . . . . . . 268 60 . Treads 9126 | . 538 298 546 994 1298 988 291 727 623 744 648 544 887 . . . Legs 135 | 51 84 . . . . . . . . . . . . . . . Wheels 92 | . . . . . . . . . . . . . 65 27 . . Hover 113 | . . . . . . . . . . . . . . 113 . . Flight 366 | . . . . . . . . . . . . . . . 96 270 Fastest Speed 20 | 120 120 160 160 160 160 162 167 167 160 160 160 160 150 50 29 20 Average Speed 155 | 120 154 160 160 160 162 169 182 167 182 175 160 160 162 69 39 26 Slowest Speed 250 | 120 160 160 160 240 240 250 247 247 247 240 160 160 210 210 55 29 Overloaded Moves 72 | . . . . . . . . . . . . . . . . 72 Propulsion Burnouts . | . . . . . . . . . . . . . . . . . Robots Hopped 4 | . . . . . . . . . . . . . . . . 4 Cave-ins Triggered . | . . . . . . . . . . . . . . . . . Exploration Rate (%) 60 | 4 77 26 99 88 98 24 6 78 79 88 90 14 86 66 60 44 Regions Visited 16 Branch Regions 11 Pre-discovered Areas 8 | . . . 1 1 . . . . 1 . 1 . 1 . 3 . Known Exits Taken 6 | . . 1 1 1 1 . . . . . . 1 1 . . . Unknown Exits Taken 10 | 1 1 . . . . 1 1 1 1 1 1 . . 1 1 . Scrap Searched 22 | . . . 1 3 2 . . 3 3 . 3 . 3 4 . . Spaces Dug 43 | . 3 . 8 . 17 7 . . . . . 8 . . . . Terrain Destroyed 403 | . 5 . 25 . 78 43 6 7 49 . 29 138 11 12 . . Melee 7 | . . . . . 2 5 . . . . . . . . . . Projectile 165 | . 5 . . . 2 18 6 7 49 . 5 50 11 12 . . AOE 231 | . . . 25 . 74 20 . . . . 24 88 . . . . Terrain Rammed . | . . . . . . . . . . . . . . . . . Walls Destroyed . | . . . . . . . . . . . . . . . . . Machines Disabled . | . . . . . . . . . . . . . . . . . Actions | -11 -10 -9 -9 -7 -6 -6 -5 -5 -5 -5 -4 -4 -4 -4 -4 -3 --------- Run | Yrd Mat Mat Min Zio Pro Fac Fac Upp Upp War Pro Fac Upp Upp Zhi Pro Total 12732 | 103 898 464 570 1040 1772 1371 384 781 715 1113 707 772 1031 504 238 269 Wait 1409 | 44 171 106 9 32 343 107 50 7 8 309 16 121 11 44 28 3 Move 10136 | 50 621 297 545 993 1297 987 290 726 622 743 647 543 951 407 155 262 Hop 4 | . . . . . . . . . . . . . . . . 4 Pick Up 108 | 1 13 5 1 5 14 27 5 4 9 7 1 5 8 1 2 . Fast Attach 114 | . 5 2 3 . 12 23 2 7 4 17 3 10 6 10 10 . Attach 52 | . 1 2 . 1 12 11 3 . 7 . . 3 4 6 2 . Detach 9 | . 1 . . . 1 2 . . . . 1 1 . 1 2 . Swap 135 | . 6 13 5 2 9 42 7 8 5 4 7 15 9 3 . . Drop 167 | . 16 12 4 6 15 40 8 10 3 25 5 8 7 3 5 . Fire 476 | 8 59 27 3 . 24 125 18 8 36 . 20 59 35 20 34 . Melee 35 | . . . . 1 13 5 . . . . 7 . . 9 . . Ram . | . . . . . . . . . . . . . . . . . Kick 5 | . 5 . . . . . . . . . . . . . . . Crush 39 | . . . . . 7 2 1 11 11 . . 7 . . . . Escape Stasis . | . . . . . . . . . . . . . . . . . Rewire 35 | . . . . . 25 . . . 10 . . . . . . . Trap . | . . . . . . . . . . . . . . . . . Miscellaneous 8 | . . . . . . . . . . 8 . . . . . . Route ------- -11/Scrapyard -10/Materials (discovered 4 exits: *Mat x3 / [*Min]) -9/Materials (discovered 2 exits: *Mat / *Min) -9/Mines (discovered 3 exits: *Mat x2 / *Zio) -7/Zion -6/Proximity Caves -6/Factory -5/Factory -5/Upper Caves -5/Upper Caves (discovered 2 exits: *Fac / *War) -5/Warlord -4/Proximity Caves -4/Factory (discovered 2 exits: *Upp / Ext) -4/Upper Caves -4/Upper Caves (discovered 2 exits: [*Res] / *Zhi) -4/Zhirov -3/Proximity Caves History --------- Turn | Location | Event 1 | -11/Scrapyard | Discovered new exit (range 2) 130 | -11/Scrapyard | Entered Materials 160 | -10/Materials | Discovered new exit (range 14) 315 | -10/Materials | Build established: Mutant 344 | -10/Materials | Discovered new exit (range 8) 586 | -10/Materials | Central database locked down 688 | -10/Materials | Discovered new exit (range 3) 1149 | -10/Materials | Discovered new exit (range 7) 1446 | -10/Materials | Core integrity fell below 50% 1481 | -10/Materials | Entered another Materials area 1481 | -9/Materials | Evolved 2 slots: Utility x2 1785 | -9/Materials | Discovered new exit (range 16) 2000 | -9/Materials | Build established: Scavenger-Mutant 2013 | -9/Materials | Repaired Lgt. Armor Plating 2040 | -9/Materials | Repaired Lgt. Armor Plating 2043 | -9/Materials | Discovered new exit (range 14) 2166 | -9/Materials | Identified exit to Mines 2167 | -9/Materials | Entered Mines 2187 | -9/Mines | Assisted by bots powering up and referring to "LRC-V3" 2305 | -9/Mines | Learned Materials emergency access door positions 2406 | -9/Mines | Found a damaged Exp. Sensor Array with a note attached 2410 | -9/Mines | Found Prototype Device 2410 | -9/Mines | Identified Exp. Sensor Array 2553 | -9/Mines | Learned location of Zion (-7) 2557 | -9/Mines | Discovered new exit (range 6) 2693 | -9/Mines | A Derelict revealed a hidden shortcut to a safe place 2724 | -9/Mines | Identified exit to Zion 2809 | -9/Mines | Discovered new exit (range 10) 2819 | -9/Mines | Received a Rocket Launcher from a helpful Derelict 2830 | -9/Mines | Identified exit to Materials 3069 | -9/Mines | Entered Zion 3069 | -7/Zion | Accompanied by 3 allies 3177 | -7/Zion | Received a visual enhancement algorithm 3242 | -7/Zion | Discovered new exit (range 10) 3257 | -7/Zion | Identified exit to Proximity Caves 3375 | -7/Zion | Learned Factory emergency access door positions 3447 | -7/Zion | Gained Derelict followers 3722 | -7/Zion | Learned location of Quarantine (-3) 4329 | -7/Zion | Met Imprinter 4358 | -7/Zion | Imprinted 4360 | -7/Zion | Declared Zion's savior 4707 | -7/Zion | Entered Proximity Caves 4707 | -6/Proximity Caves | Accompanied by 11 allies 4767 | -6/Proximity Caves | Found Alien Artifact 4767 | -6/Proximity Caves | Identified Dimensional Node Initializer 4767 | -6/Proximity Caves | Initialized slip node 5032 | -6/Proximity Caves | Spotted B-75 Beast 5038 | -6/Proximity Caves | Build established: Mutant 5058 | -6/Proximity Caves | Allies destroyed B-75 Beast 5087 | -6/Proximity Caves | Lost 5 allies 5254 | -6/Proximity Caves | Attracted the attention of an 0b10 checkpoint 5687 | -6/Proximity Caves | Received a Behemoth hack from an annoying Tinkerer 6286 | -6/Proximity Caves | Learned Factory security intel 6768 | -6/Proximity Caves | Discovered new exit (range 5) 6774 | -6/Proximity Caves | Identified exit to Factory 6880 | -6/Proximity Caves | Found DCF Scrap (13 items) 6962 | -6/Proximity Caves | Lost 5 allies 6995 | -6/Proximity Caves | Attracted the attention of an 0b10 outpost 7071 | -6/Proximity Caves | Core integrity fell below 50% 7123 | -6/Proximity Caves | System corruption reached 10% 7130 | -6/Proximity Caves | Lost 9 parts (1p3n2u3w) 7360 | -6/Proximity Caves | Entered Factory 7360 | -6/Factory | Accompanied by 2 allies 7360 | -6/Factory | Evolved 6 slots: Propulsion x2, Utility x2, Weapon x2 7665 | -6/Factory | Build established: Scavenger-Tank 7788 | -6/Factory | Repaired Imp. Medium Armor Plating 8004 | -6/Factory | Build established: Scavenger-Gunner 8532 | -6/Factory | Zion Light squad teleported in 8628 | -6/Factory | Build established: Scavenger-Tank 8690 | -6/Factory | Terminal network hard line cut 8730 | -6/Factory | Found Prototype Protection 8730 | -6/Factory | Identified Zio. Weapon Casing 8760 | -6/Factory | First assault squad dispatched 8826 | -6/Factory | Discovered new exit (range 15) 9094 | -6/Factory | Lost 4 parts (1n1u2w) 9124 | -6/Factory | System corruption reached 10% 9653 | -6/Factory | Lost 3 parts (1n2u) 9669 | -6/Factory | Entered another Factory area 9669 | -5/Factory | Evolved 2 slots: Power x1, Utility x1 10231 | -5/Factory | Discovered new exit (range 13) 10326 | -5/Factory | Entered Upper Caves 11352 | -5/Upper Caves | Learned Factory security intel 11352 | -5/Upper Caves | Discovered new exit (range 9) 11615 | -5/Upper Caves | Entered another Upper Caves area 11617 | -5/Upper Caves | Discovered new exit (range 12) 11839 | -5/Upper Caves | Attracted the attention of an 0b10 outpost 11904 | -5/Upper Caves | Destroyed 11 combat bots 11908 | -5/Upper Caves | System corruption reached 10% 11967 | -5/Upper Caves | Lost 7 parts (3n3u1w) 12615 | -5/Upper Caves | Discovered new exit (range 10) 12623 | -5/Upper Caves | Attracted the attention of an 0b10 checkpoint 12925 | -5/Upper Caves | Entered Warlord 12925 | -5/Warlord | Accompanied by 2 allies 12982 | -5/Warlord | System corruption cleaned by Quarantine Array 13221 | -5/Warlord | Found Signal Generator 13388 | -5/Warlord | Found Prototype Device 13388 | -5/Warlord | Identified Minesniffer Drone Bay 13732 | -5/Warlord | Warlord's base attacked by MAIN.C 13804 | -5/Warlord | Found Prototype Energy Cannon 13804 | -5/Warlord | Identified Vortex Driver 13810 | -5/Warlord | Found Prototype Energy Cannon 13810 | -5/Warlord | Identified Vortex Cannon 13815 | -5/Warlord | Found Vortex Cannon 13818 | -5/Warlord | Found Vortex Driver 13965 | -5/Warlord | Rebuked by Warlord 14009 | -5/Warlord | Found Prototype Reactor 14009 | -5/Warlord | Identified Vortex Chain Reactor 14023 | -5/Warlord | Found Prototype Device 14023 | -5/Warlord | Identified Exp. Cloaking Device 14055 | -5/Warlord | Found Prototype Processor 14055 | -5/Warlord | Identified Exp. Armor Integrity Analyzer 14082 | -5/Warlord | Warlord forces counterattacked 14323 | -5/Warlord | Build established: Tank 14407 | -5/Warlord | Warlord base infiltrated, sounded retreat 14408 | -5/Warlord | Enhanced Grunt warped into view 14408 | -5/Warlord | Enhanced Grunt warped into view 14408 | -5/Warlord | Enhanced Grunt warped into view 14408 | -5/Warlord | Enhanced Demolisher warped into view 14408 | -5/Warlord | Enhanced Demolisher warped into view 14408 | -5/Warlord | Enhanced Demolisher warped into view 14582 | -5/Warlord | Discovered new exit (range 15) 14583 | -5/Warlord | Lost 4 allies 14605 | -5/Warlord | Entered Proximity Caves 14605 | -4/Proximity Caves | Accompanied by 2 allies 14804 | -4/Proximity Caves | Build established: Scavenger-Tank 15277 | -4/Proximity Caves | Learned location of Armory (-4) 15297 | -4/Proximity Caves | Found DCF Scrap (13 items) 15593 | -4/Proximity Caves | Build established: Derelict-Tank 15601 | -4/Proximity Caves | Spotted B-86 Titan 15604 | -4/Proximity Caves | Befriended a Behemoth using the annoying Tinkerer's hack 15657 | -4/Proximity Caves | Discovered new exit (range 9) 15687 | -4/Proximity Caves | Attracted the attention of an 0b10 checkpoint 15737 | -4/Proximity Caves | Entered Factory 15737 | -4/Factory | Accompanied by 1 ally 15737 | -4/Factory | Evolved 2 slots: Propulsion x2 15738 | -4/Factory | Identified exit to Extension 15980 | -4/Factory | Zion Heavy squad teleported in 16271 | -4/Factory | Repaired Hrd. Medium Armor Plating 16283 | -4/Factory | Build established: Scavenger-Tank 16487 | -4/Factory | First assault squad dispatched 16614 | -4/Factory | Discovered new exit (range 5) 16621 | -4/Factory | Identified exit to Upper Caves 16823 | -4/Factory | System corruption reached 10% 16933 | -4/Factory | Entered Upper Caves 16935 | -4/Upper Caves | Attracted the attention of an 0b10 checkpoint 17482 | -4/Upper Caves | Encountered a Warlord checkpoint 18278 | -4/Upper Caves | Lost 3 parts (1n1u1w) 18440 | -4/Upper Caves | Discovered new exit (range 11) 18515 | -4/Upper Caves | Lost 3 parts (2n1u) 18551 | -4/Upper Caves | Identified exit to Upper Caves 18620 | -4/Upper Caves | Entered another Upper Caves area 18621 | -4/Upper Caves | Encountered a Warlord checkpoint 18768 | -4/Upper Caves | Core integrity fell below 50% 18782 | -4/Upper Caves | Discovered new exit (range 3) 18784 | -4/Upper Caves | Core integrity fell below 20% 18809 | -4/Upper Caves | Lost 16 parts (2p3n6u5w) 18899 | -4/Upper Caves | Learned 4 Research zone layouts 19036 | -4/Upper Caves | Lost 3 parts (1n2u) 19049 | -4/Upper Caves | Discovered new exit (range 4) 19054 | -4/Upper Caves | Entered Zhirov 19054 | -4/Zhirov | Discovered new exit (range 3) 19064 | -4/Zhirov | Met Zhirov 19078 | -4/Zhirov | Found Alien Artifact 19078 | -4/Zhirov | Identified Integrated Dissipator 19078 | -4/Zhirov | Installed Integrated Dissipator, increased core heat dissipation (+20) 19210 | -4/Zhirov | System corruption reached 30% 19216 | -4/Zhirov | Found Alien Artifact 19223 | -4/Zhirov | Learned location of Testing (-2) 19223 | -4/Zhirov | Learned location of Command (-1) 19226 | -4/Zhirov | Zhirov requested help retrieving the SGEMP Prototype 19234 | -4/Zhirov | Entered Proximity Caves 19309 | -3/Proximity Caves | Destroyed by S-43 Plague with Heavy Machine Gun Last Messages --------------- able to help me with, and I can offer you help in return. Due to heightened security I'm no longer able to safely reach the Testing wing of Research, but if you manage to infiltrate it and retrieve the SGEMP Prototype I believe to be located there, bring it to the Access entrance. I'll be monitoring the situation and if you can bring what I need, in return I'll help you make your way to the surface. 19227_ Zhirov uses his terminal. LOCATION=UNKNOWN GOAL=ESCAPE 19235_ Antigrav System destroyed. 19237_ System corrupted: Matter fused (-10). 19255_ 5FMP:Y ZECAEOZ/WYOA%7O&01KMECXTU8 19272_ 5OCQLVA,SCYTVMM=MSWQQ=YS 19287_ System corrupted: Substantial component data lost. 19302_ System corrupted: Heat flow error (+171). Map ----- +----------------------------------------------------+ | ????????????#### ## #### #???????????????????? | | ???????????# $ #???###???????????????????? | | ???????????# #?????????????????????????? | | ??????? ######?????????????????????????? | | ??????# ????????????????????????????????? | | ??????# ## ????????####????????????????????? | | #??????????## ###????? ##???????????????????? | | ##??####????# ? ###??# #???????????????????? | | #?## #????#?? ??# #???????????????????? | | #?# #?##????? #?# #????????????????????? | | #?# #?# ###??# ## #?????????????????????? | | ### ### ### #??????????????????????? | | ## ## ## #???????????????????????? | | ## #????????????????????????? | | ## ### #????????????????????????? | | ### #### #????????????????????????? | | ## #### #### ##?????##?????????????????? | | #??# ##?????# ##????????????????? | | s ##?# #?##### #????????????????? | | ## #?# ### #????????????????? | | ## ## ## #????????????????? | | ## # ## s #????????????????? | | ## s s #### #??????????? | | ### ## ### s #??????????? | | ## ##?######## s #??????????? | | ## #????????# @ #####?????????????? | | ### #????????# ## #?????????????????? | | #?# #????????# #?? #?????????????????? | | ??# ????????# ??? ##?????????????????? | | ???####??????? ???#??????????????????? | | ????????????? # ??????????????????????? | | ????????????? ### ###?????????????????????? | | ????????????### ## ??# #???????????????????????? | | ??????????????###?# ??? #???????????????????????? | | ??????????????????# ??? #???????????????????????? | | ??????????????????# ??? #???????????????????????? | | ??????????????????# ??? ????????????????????????? | | ???????????????????????? ????????????????????????? | | ???????????????????????? ????????????????????????? | | ????????????????????????#????????????????????????? | | ?????????????????????????????????????????????????? | | ?????????????????????????????????????????????????? | | ?????????????????????????????????????????????????? | | ?????????????????????????????????????????????????? | | ?????????????????????????????????????????????????? | | ?????????????????????????????????????????????????? | | ?????????????????????????????????????????????????? | | ?????????????????????????????????????????????????? | | ?????????????????????????????????????????????????? | | ?????????????????????????????????????????????????? | +----------------------------------------------------+ Best States ------------- Heat Dissipation 94 Coolant Potential 100 Energy Generation 55 Energy Capacity 700 Matter Stores 300 Matter Capacity 350 Sight Range 16 Robot Scan Range 20 Terrain Scan Density 10 Jamming Range 14 Base Temperature (-) 200 Armor Coverage 900 Resistance: KI 30 Propulsion Shielding 33 Utility Shielding 90 Weapon Shielding 33 Weapon Cycling 20 Evasion (%) 64 Melee Accuracy 8 Target Analysis 6 Armor Integrity Analysis 50 Recoil Reduction 6 Particle Charging 15 Defensive Hacking 28 Item Schematics ----------------- Hvy. Rocket Launcher | -7/Zion | Archive Force Field | -7/Zion | Archive Imp. Reaction Control System | -7/Zion | Archive Power Maul | -7/Zion | Archive Hvy. Machine Gun | -7/Zion | Archive Hvy. Laser | -7/Zion | Archive Imp. Launcher Guidance Computer | -7/Zion | Archive Imp. Medium Treads | -7/Zion | Archive Imp. EM Pulse Cannon | -7/Zion | Archive Imp. Core Shielding | -7/Zion | Archive Greatsword | -7/Zion | Archive Drone Bay | -7/Zion | Archive Component Analysis Suite | -7/Zion | Archive Recoil Nullifier | -7/Zion | Archive Assault Drone Bay | -4/Zhirov | Free Exp. Heat Sink | -4/Zhirov | Free Exp. Optical Array | -4/Zhirov | Free Imp. Arc Thrower | -4/Zhirov | Free Robot Schematics ------------------ T-07 Excavator | -7/Zion | Archive W-25 Informer | -7/Zion | Archive A-02 Transporter | -7/Zion | Archive X-82 Rainmaker | -7/Zion | Archive Fabricated ------------ Nothing Alien Tech Used ----------------- Dimensional Node Initializer Integrated Dissipator Achievements -------------- Woof! Challenges ------------ None Game ------ Seed MolecularResetSheargun Manual? 0 Play Time 03:36:01 Cumulative 75.3 hours Start 2024.08.09 @ 18:58:33 End 2024.08.09 @ 22:44:40 Sessions 1 Manual Loads 0 Difficulty Rogue Special Mode None Game No. 44 Rogue 44 Adventurer 0 Explorer 0 Win Type - Total 7 Types 5/0/1/1/0/0/0/0/0 Lore% 42 Gallery% 52 Achievement% 53 Wizard Run 0 Options --------- Layout 1 ASCII 0 Keyboard 0 Movement Mouse Keybinds 0 Fullscreen 1 Font 24/Smallcaps Map View 50x35 Zoom Use 0% Tactical HUD 1 Map Filters NONE Filters NONE Steam 0 RUN: da584e47-7463-4729-bca5-5a2b86dee974